lending/lending_fUSD_20240206
["ID","MTS","AMOUNT","RATE_DAILY","PERIOD"]
[313380166,1707246556183,-2100.0,0.000226,8]
[313380167,1707246556203,-161.9472455,0.00022642,2]
[313380168,1707246556222,-457.63,0.00022681,2]
[313380169,1707246556241,-660.36,0.00022681,2]
[313380170,1707246556260,-300.0,0.00022697,2]
[313380171,1707246556279,-150.0,0.00022697,2]
[313380172,1707246556298,-150.0,0.00022697,2]
[313380173,1707246556322,-6619.43310282,0.00022698,2]
[313380174,1707246557113,-286.49170438,0.00022504,2]
[313380175,1707246557132,-272.69236131,0.00022698,2]
[313380176,1707246562085,-5703.2796,0.00022698,2]
[313380178,1707246566110,-170.59217456,0.00022698,2]
[313380179,1707246566130,-933.03,0.00022698,2]
[313380180,1707246566153,-2128.65003041,0.00022699,2]
[313380181,1707246566174,-499.99,0.00022699,2]
[313380182,1707246566198,-1405.52177119,0.000227,8]
[313380183,1707246569107,-1194.47822881,0.000227,8]
[313380184,1707246569127,-161.9472455,0.00022706,2]
[313380185,1707246569149,-160.5,0.00022708,2]
[313380186,1707246569168,-786.68722921,0.00022767,2]
[313380187,1707246569188,-274.76884876,0.00022767,2]
[313380188,1707246569207,-11993.0,0.00022769,2]
[313380189,1707246569227,-161.9472455,0.00022771,2]
[313380190,1707246569246,-500.0,0.000228,8]
[313380191,1707246569266,-161.9472455,0.00022835,2]
[313380192,1707246569288,-155.0,0.00022882,2]
[313380193,1707246569307,-986.2101,0.00022899,2]
[313380194,1707246569330,-431.65764338,0.00022899,2]
[313380195,1707246575552,1954.1917,0.00022406,2]
[313380221,1707246634004,-0.07412263,0.00022897,2]
[313380222,1707246634019,-231.13570893,0.00022897,2]
[313380223,1707246634030,-114.16429107,0.00022898,2]
[313380224,1707246634051,-550.0,0.00022898,2]
[313380225,1707246634166,-218.83570893,0.00022898,2]
[313380226,1707246634178,-1693.65423627,0.00022899,2]
[313380227,1707246634192,-651.28142392,0.00022899,2]
[313380228,1707246634206,-1141.40303688,0.00022899,2]
[313380229,1707246634230,-2096.25729201,0.00022899,2]
[313380230,1707246634244,-9450.77247608,0.00022899,2]
[313380231,1707246634255,-517.20396699,0.00022899,2]
[313380232,1707246634267,-2994.31687104,0.000229,2]
[313380233,1707246634281,-14006.53502782,0.000229,2]
[313380234,1707246634292,-161.9472455,0.000229,2]
[313380236,1707246634303,-500.0,0.000229,8]
[313380238,1707246634314,-160.5,0.00022904,2]
[313380241,1707246634326,-187.14142257,0.00022989,2]
[313380243,1707246634337,-1417.5354609,0.00022997,2]
[313380245,1707246634348,-283.92894102,0.00022997,2]
[313380247,1707246634359,-10531.35087382,0.00022997,2]
[313380249,1707246634371,-2911.79656407,0.00022997,2]
[313380251,1707246634382,-488.92621759,0.00022997,2]
[313380253,1707246634392,-296.83201553,0.00022997,2]
[313380255,1707246634404,-437.33472019,0.00022997,2]
[313380257,1707246634415,-311.23513441,0.00022997,2]
[313380259,1707246634427,-192.03577205,0.00022997,2]
[313380261,1707246634437,-155.00236455,0.00022997,2]
[313380263,1707246634448,-851.94146667,0.00022997,2]
[313380265,1707246634460,-155.0,0.00022997,2]
[313380268,1707246634471,-155.0,0.00022997,2]
[313380270,1707246634482,-401.96625764,0.00022997,2]
[313380272,1707246634493,-155.51166775,0.00022997,2]
[313380274,1707246634504,-2146.69723866,0.00022997,2]
[313380276,1707246634515,-1366.4468702,0.00022997,2]
[313380278,1707246634526,-1054.0465193,0.00022997,2]
[313380279,1707246634538,-609.25213103,0.00022997,2]
[313380280,1707246634549,-1278.06134496,0.00022997,2]
[313380281,1707246634561,-3746.54977475,0.00022997,2]
[313380282,1707246634572,-701.66463014,0.00022997,2]
[313380283,1707246634583,-447.54094374,0.00022997,2]
[313380284,1707246634594,-361.62506642,0.00022997,2]
[313380285,1707246634606,-3765.73902743,0.00022997,2]
[313380286,1707246634620,-433.34162445,0.00022997,2]
[313380287,1707246634632,-375.1126612,0.00022997,2]
[313380288,1707246634644,-157.12271265,0.00022998,2]
[313380289,1707246634655,-326.25992106,0.00022998,2]
[313380291,1707246634665,-162.97983708,0.00022998,2]
[313380293,1707246634674,-1573.93419648,0.00022998,2]
[313380295,1707246634683,-500.0,0.00022998,2]
[313380296,1707246634693,-500.0,0.00022998,2]
[313380298,1707246634703,-500.0,0.00022998,2]
[313380299,1707246634889,-400.91353198,0.00022998,2]
[313380300,1707246634909,-500.0,0.00022998,2]
[313380301,1707246634919,-326.19916803,0.00022998,2]
[313380302,1707246634929,-500.0,0.00022998,2]
[313380303,1707246634938,-500.0,0.00022998,2]
[313380304,1707246634948,-500.0,0.00022998,2]
[313380305,1707246634958,-155.0,0.00022999,2]
[313380306,1707246634968,-2251.96367323,0.00022999,2]
[313380307,1707246634977,-155.14544411,0.00022999,2]
[313380308,1707246634986,-64781.02791422,0.00022999,2]
[313380309,1707246635000,-5583.00000026,0.00022999,2]
[313380310,1707246635012,-21560.84419206,0.00022999,2]
[313380311,1707246635024,-12559.80288,0.00022999,2]
[313380327,1707246637927,-273.40047181,0.00022897,2]
[313380328,1707246637936,-964.40356565,0.00022997,2]
[313380329,1707246637945,-19383.74309575,0.00022999,2]
[313380330,1707246637963,-2399.70613659,0.00022999,2]
[313380331,1707246637974,-654.70682192,0.00022999,2]
[313380332,1707246637989,-33816.6003079,0.00022999,2]
[313380333,1707246638000,-7567.78490808,0.00022999,2]
[313380334,1707246638039,-435.87771536,0.00022999,2]
[313380335,1707246638051,-561.11018765,0.00022999,2]
[313380336,1707246638084,-0.46965698,0.00022999,2]
[313380337,1707246638095,-4404.65857343,0.00022999,2]
[313380338,1707246638154,-301.03036373,0.00022999,2]
[313380501,1707246640420,-430.61952,0.00022999,2]
[313380502,1707246640433,-377.63072068,0.00022999,2]
[313380503,1707246640587,-1600.65,0.00022999,2]
[313380504,1707246640599,-690.03922118,0.00022999,2]
[313380505,1707246640611,-1444.49629537,0.00022999,2]
[313380506,1707246640623,-2262.50270725,0.00022999,2]
[313380507,1707246641301,-156737.16736205,0.00022999,2]
[313380508,1707246641314,-8188.52906713,0.00022999,2]
[313380509,1707246641325,-306.58914448,0.00022999,2]
[313380538,1707246642790,-233602.84966602,0.00022999,2]
[313380546,1707246642847,-350.0090091,0.00022999,2]
[313380547,1707246642916,-236716.4964915,0.00022999,2]
[313380548,1707246642961,-9008.28098576,0.00022999,2]
[313380549,1707246642974,-409.4361096,0.00022999,2]
[313380550,1707246643019,-5125.0065,0.00022999,2]
[313380551,1707246643041,-0.00232883,0.00022999,2]
[313380552,1707246643052,-267.32835716,0.00022999,2]
[313380553,1707246643064,-353.25040439,0.00022999,2]
[313380573,1707246646166,-49776.03951106,0.00022999,2]
[313380574,1707246646178,-10000.0,0.00022999,2]
[313380575,1707246646190,-1980.66081645,0.00022999,2]
[313380579,1707246743555,155.0,0.00020697,2]
[313380580,1707246752330,2936.57546586,0.00022077,2]
[313380581,1707246757699,854.65285225,0.00020697,2]
[313380582,1707246854433,200.0,0.00021904,2]
[313380583,1707246866784,258.03,0.00022,2]
[313380584,1707246868064,258.03,0.00022137,2]
[313380585,1707246869339,258.03,0.00022274,2]
[313380586,1707246872992,176.99,0.00022,2]
[313380587,1707246873114,182.04270309,0.00022252,2]
[313380588,1707246882462,200.0,0.00021904,2]
[313380589,1707246889226,735.5792147,0.00021,2]
[313380590,1707246889730,2189.66679488,0.00021685,2]
[313380591,1707246893909,494.07788319,0.00021904,2]
[313380592,1707246898097,404.74039498,0.00021247,2]
[313380593,1707246898662,500.0,0.00021916,2]
[313380594,1707246899467,268.32724543,0.00021904,2]
[313380596,1707246903829,362.00852423,0.00021904,2]
[313380597,1707246903871,1428.60550277,0.00021685,2]
[313380598,1707246905433,155.40567742,0.00019714,2]
[313380599,1707246906184,809.5851531,0.00021904,2]
[313380600,1707246910363,260.9149056,0.00021904,2]
[313380601,1707246913018,2232.2179096,0.00021904,2]
[313380602,1707246915093,285.05375891,0.00021904,2]
[313380603,1707246918136,162.10481077,0.00020607,2]
[313380604,1707246920163,869.23510328,0.00021904,2]
[313380605,1707246933847,283.85892407,0.00021904,2]
[313380606,1707246935133,280.83,0.00021911,2]
[313380607,1707246941175,1124.07844152,0.00021904,2]
[313380608,1707246944155,282.9,0.00019981,2]
[313380609,1707246944388,282.9,0.00022245,2]
[313380610,1707246946044,1026.93618598,0.00021904,2]
[313380611,1707246953841,282.62721785,0.00021904,2]
[313380612,1707246957161,240.38682466,0.00021904,2]
[313380613,1707246964034,877.01594504,0.00021904,2]
[313380614,1707246968162,187.61,0.00021885,2]
[313380615,1707246972670,191.82,0.00017519,2]
[313380617,1707247098808,2000.0,0.00021899,2]
[313380618,1707247140725,1033.01,0.00021891,2]
[313380619,1707247142719,168.15,0.00021891,2]
[313380620,1707247170072,156.67,0.00022053,2]
[313380621,1707247170306,156.67,0.00022113,2]
[313380622,1707247170519,156.67,0.00022174,2]
[313380623,1707247170738,156.67,0.00022234,2]
[313380624,1707247170994,156.67,0.00022295,2]
[313380625,1707247171244,156.67,0.00022355,2]
[313380626,1707247171502,156.67,0.00022416,2]
[313380627,1707247171881,156.67,0.00022476,2]
[313380628,1707247183090,250.0,0.00021833,2]
[313380629,1707247186734,200.0,0.00021849,2]
[313380630,1707247186925,250.0,0.00021918,2]
[313380631,1707247210560,23155.41,0.00021833,2]
[313380632,1707247216674,150.0,0.00021849,2]
[313380633,1707247304362,250.0,0.00022,2]
[313380634,1707247305644,250.0,0.00022274,2]
[313380635,1707247308233,183.11,0.00021858,2]
[313380636,1707247388757,-1049.55750917,0.00022504,2]
[313380637,1707247388782,-419.76330067,0.00022505,2]
[313380638,1707247388803,-757.27871835,0.00022505,2]
[313380639,1707247388833,-273.40047181,0.00022505,2]
[313380640,1707247390420,372.67084418,0.00022503,2]
[313380641,1707247391783,208.7006556,0.00022503,2]
[313380642,1707247394562,273.40047181,0.00022503,2]
[313380643,1707247420674,231.20983156,0.00022503,2]
[313380644,1707247421743,4163.69017682,0.00022503,2]
[313380645,1707247433566,299.57,0.00019955,2]
[313380646,1707247433650,4716.84608242,0.00022503,2]
[313380647,1707247433918,299.57,0.00022219,2]
[313380648,1707247434245,2912.99141125,0.00022503,2]
[313380649,1707247438140,413.71593201,0.00022503,2]
[313380650,1707247441725,155.0,0.00022503,2]
[313380651,1707247456058,177.31122357,0.00022,2]
[313380652,1707247477075,273.40047181,0.00022503,2]
[313380653,1707247478569,6514.01,0.00021918,2]
[313380654,1707247482861,150.0,0.00022,2]
[313380655,1707247488003,176.99,0.00022,2]
[313380656,1707247493602,231.20983156,0.00022503,2]
[313380657,1707247527050,280.83,0.00021882,2]
[313380658,1707247563832,180.12,0.00021882,2]
[313380659,1707247569996,231.20983156,0.00022503,2]
[313380660,1707247573822,502.45,0.00021882,2]
[313380661,1707247642564,231.20983156,0.00022503,2]
[313380662,1707247650459,250.0,0.00021918,2]
[313380663,1707247653898,1023.64,0.00021882,2]
[313380664,1707247662849,250.0,0.00021888,2]
[313380665,1707247677221,150.0,0.00021931,2]
[313380666,1707247682863,355.87983929,0.00022503,2]
[313380667,1707247707545,158.8089,0.00022448,2]
[313380668,1707247719016,231.20983156,0.00022503,2]
[313380669,1707247719918,200.0,0.00021962,2]
[313380670,1707247728712,155.9,0.00022157,2]
[313380671,1707247728920,155.9,0.00022234,2]
[313380672,1707247729119,155.9,0.00022311,2]
[313380673,1707247729404,155.9,0.00022388,2]
[313380674,1707247729574,155.9,0.00022464,2]
[313380675,1707247750104,-1141.10350656,0.00022504,2]
[313380676,1707247750124,-155.9,0.00022541,2]
[313380677,1707247750145,-353.63,0.00022548,2]
[313380678,1707247750163,-155.9,0.00022618,2]
[313380679,1707247750182,-155.9,0.00022695,2]
[313380680,1707247750202,-300.0,0.00022758,2]
[313380681,1707247750221,-150.0,0.00022758,2]
[313380682,1707247750240,-150.0,0.00022758,2]
[313380683,1707247750260,-2575.3504696,0.00022759,2]
[313380684,1707247768106,-518.92130967,0.00022758,2]
[313380685,1707247768125,-4360.07876409,0.00022759,2]
[313380686,1707247770116,-161.17948742,0.00022667,2]
[313380687,1707247770137,-4323.88809571,0.00022759,2]
[313380688,1707247770158,-4145.77513924,0.00022767,2]
[313380689,1707247770178,-155.9,0.00022772,2]
[313380690,1707247770197,-1609.3272,0.00022799,2]
[313380691,1707247770220,-8204.0065,0.00022799,2]
[313380692,1707247770240,-481.2212,0.000228,2]
[313380693,1707247770261,-155.9,0.00022849,2]
[313380694,1707247770280,-155.92143527,0.00022882,2]
[313380695,1707247770300,-216.36056394,0.00022897,2]
[313380696,1707247770320,-247.5570677,0.00022897,2]
[313380697,1707247770338,-197.65742886,0.00022897,2]
[313380698,1707247770358,-265.648,0.00022898,2]
[313380699,1707247770376,-3051.3755,0.00022899,2]
[313380700,1707247770401,-20802.49958836,0.00022899,2]
[313380716,1707247833301,-231.20983156,0.00022692,2]
[313380718,1707247833311,-161.17948734,0.00022693,2]
[313380719,1707247833320,-161.17948734,0.00022719,2]
[313380721,1707247833329,-161.17948734,0.00022745,2]
[313380723,1707247833338,-3.28170642,0.00022771,2]
[313380725,1707247833349,-157.89778092,0.00022771,2]
[313380727,1707247833358,-161.17948734,0.00022796,2]
[313380729,1707247833367,-150.0,0.00022799,2]
[313380731,1707247833376,-3283.76373174,0.000228,2]
[313380733,1707247833388,-5659.62866364,0.000228,2]
[313380735,1707247833467,-6097.86090462,0.000228,2]
[313380736,1707247833477,-161.17948734,0.00022822,2]
[313380737,1707247833486,-161.17948734,0.00022848,2]
[313380738,1707247833495,-161.17948734,0.00022874,2]
[313380739,1707247833504,-2460.2447,0.00022897,2]
[313380740,1707247833514,-20365.27491164,0.00022899,2]
[313380741,1707247833523,-2276.295,0.00022899,2]
[313380742,1707247833533,-4743.9446,0.00022899,2]
[313380743,1707247833545,-1000.0,0.00022899,2]
[313380744,1707247833554,-14554.12946324,0.000229,2]
[313380745,1707247833563,-856.52809361,0.000229,2]
[313380746,1707247833573,-161.17948734,0.000229,2]
[313380748,1707247833581,-646.34464714,0.000229,2]
[313380749,1707247833590,-155.9,0.00022926,2]
[313380751,1707247833600,-216.03758245,0.00022974,2]
[313380753,1707247833609,-187.14142257,0.0002299,2]
[313380756,1707247833619,-203.0,0.00022997,2]
[313380758,1707247833628,-368.18473738,0.00022997,2]
[313380760,1707247833638,-374.95332528,0.00022997,2]
[313380762,1707247833648,-301.77653735,0.00022997,2]
[313380765,1707247833657,-203.74412649,0.00022997,2]
[313380768,1707247833666,-155.0,0.00022997,2]
[313380770,1707247833676,-288.89965311,0.00022997,2]
[313380772,1707247833685,-248.82203226,0.00022997,2]
[313380774,1707247833694,-384.9164604,0.00022997,2]
[313380776,1707247833703,-158.8028217,0.00022997,2]
[313380778,1707247833712,-214.87239207,0.00022997,2]
[313380781,1707247833722,-156.65739544,0.00022997,2]
[313380783,1707247833731,-158.30384599,0.00022997,2]
[313380784,1707247833740,-235.2545301,0.00022997,2]
[313380787,1707247833750,-335.75552564,0.00022997,2]
[313380789,1707247833759,-261.17719989,0.00022997,2]
[313380790,1707247833768,-157.98255968,0.00022997,2]
[313380792,1707247833777,-157.19234731,0.00022997,2]
[313380794,1707247833787,-475.44124884,0.00022997,2]
[313380796,1707247833796,-1643.49617115,0.00022997,2]
[313380798,1707247833805,-669.93186281,0.00022997,2]
[313380800,1707247833814,-204.35837107,0.00022997,2]
[313380802,1707247833823,-234.44696452,0.00022997,2]
[313380804,1707247833833,-155.3324332,0.00022997,2]
[313380806,1707247833841,-3411.90530858,0.00022997,2]
[313380808,1707247833850,-7307.87287761,0.00022997,2]
[313380811,1707247833863,-871.838646,0.00022997,2]
[313380813,1707247833872,-277.45759084,0.00022997,2]
[313380815,1707247833885,-1567.2118495,0.00022997,2]
[313380817,1707247833894,-156.93056967,0.00022997,2]
[313380819,1707247833903,-156.20492659,0.00022997,2]
[313380821,1707247833912,-196.93083625,0.00022997,2]
[313380823,1707247833922,-156.49884071,0.00022997,2]
[313380824,1707247833931,-500.0,0.00022997,2]
[313380825,1707247833940,-1006.76872509,0.00022997,2]
[313380826,1707247833974,-0.65474102,0.00022997,2]
[313380843,1707247838045,-0.39972,0.00022997,2]
[313380844,1707247838057,-236.53396673,0.00022997,2]
[313380845,1707247838067,-155.65818802,0.00022997,2]
[313380846,1707247838076,-107.80784525,0.00022997,2]
[313380847,1707247838088,-161.5583278,0.00022997,2]
[313380848,1707247838097,-157.02308234,0.00022997,2]
[313380849,1707247838106,-156.52864834,0.00022997,2]
[313380850,1707247838115,-142.57115328,0.00022997,2]
[313380851,1707247838127,-35.44343027,0.00022997,2]
[313380852,1707247838137,-155.19414547,0.00022997,2]
[313380853,1707247838146,-193.62669506,0.00022997,2]
[313380854,1707247838155,-249.44582608,0.00022997,2]
[313380855,1707247838164,-281.36537667,0.00022997,2]
[313380856,1707247838173,-508.95671337,0.00022997,2]
[313380857,1707247838182,-156.10718307,0.00022997,2]
[313380858,1707247838192,-241.87504657,0.00022997,2]
[313380859,1707247838201,-178.94185082,0.00022997,2]
[313380860,1707247838210,-155.0,0.00022997,2]
[313380861,1707247838219,-156.37062616,0.00022997,2]
[313380862,1707247838228,-219.43998333,0.00022997,2]
[313380863,1707247838237,-181.65130825,0.00022997,2]
[313380864,1707247838246,-155.0,0.00022997,2]
[313380865,1707247838255,-155.0,0.00022997,2]
[313380866,1707247838264,-4294.24608118,0.00022997,2]
[313380867,1707247838285,-609.90592565,0.00022997,2]
[313380868,1707247838296,-2910.13707637,0.00022997,2]
[313380869,1707247838305,-342.81727514,0.00022997,2]
[313380870,1707247838314,-155.0,0.00022997,2]
[313380871,1707247838323,-534.13363385,0.00022997,2]
[313380872,1707247838333,-324.11732893,0.00022997,2]
[313380873,1707247838342,-268.05029821,0.00022997,2]
[313380874,1707247838351,-208.11996346,0.00022997,2]
[313380875,1707247838360,-316.48528873,0.00022997,2]
[313380876,1707247838372,-54.15664711,0.00022997,2]
[313380877,1707247838382,-2326.42477179,0.00022997,2]
[313380878,1707247838391,-2911.79656407,0.00022997,2]
[313380879,1707247838400,-395.93131803,0.00022997,2]
[313380880,1707247838409,-202.92631749,0.00022997,2]
[313380881,1707247838418,-159.00544813,0.00022997,2]
[313380882,1707247838427,-273.16923549,0.00022997,2]
[313380883,1707247838436,-7261.25875135,0.00022997,2]
[313380884,1707247838445,-463.06432174,0.00022997,2]
[313380885,1707247838455,-194.84358991,0.00022997,2]
[313380886,1707247838465,-423.01684708,0.00022997,2]
[313380889,1707247838481,-3057.629997,0.00022997,2]
[313380891,1707247838490,-1136.84059591,0.00022997,2]
[313380893,1707247838499,-520.20635945,0.00022997,2]
[313380895,1707247838508,-247.5570677,0.00022997,2]
[313380897,1707247838517,-155.0,0.00022998,2]
[313380898,1707247838526,-1857.22096662,0.00022998,2]
[313380901,1707247838538,-289.47627204,0.00022998,2]
[313380903,1707247838547,-947.60172796,0.00022998,2]
[313380905,1707247838559,-2128.21227268,0.00022998,2]
[313380907,1707247838568,-212.07944382,0.00022998,2]
[313380909,1707247838577,-155.65399982,0.00022998,2]
[313380911,1707247838586,-1653.59018415,0.00022999,2]
[313380913,1707247838598,-364.89736001,0.00022999,2]
[313380915,1707247838609,-529.82133345,0.00022999,2]
[313380918,1707247838620,-46928.99759534,0.00022999,2]
[313380920,1707247838632,-805.097984,0.00022999,2]
[313380922,1707247838644,-3199.999998,0.00022999,2]
[313380924,1707247838656,-3576.51945227,0.00022999,2]
[313380926,1707247838665,-493.596789,0.00022999,2]
[313380929,1707247838675,-349.45677853,0.00022999,2]
[313380930,1707247838684,-389.14765245,0.00022999,2]
[313380933,1707247838694,-210.87296803,0.00022999,2]
[313380935,1707247838703,-3518.4405472,0.00022999,2]
[313380936,1707247838712,-500.0,0.00022999,2]
[313380938,1707247838721,-162.93560731,0.00022999,2]
[313380940,1707247838731,-488.6019702,0.00022999,2]
[313380942,1707247838739,-2000.0,0.00022999,2]
[313380944,1707247838749,-200.0,0.00022999,2]
[313380946,1707247838758,-300.0,0.00022999,2]
[313380949,1707247838768,-300.0,0.00022999,2]
[313380950,1707247838777,-300.0,0.00022999,2]
[313380952,1707247838786,-215.55679663,0.00022999,2]
[313380956,1707247838809,-0.80390357,0.00022999,2]
[313380958,1707247838821,-83.6392998,0.00022999,2]
[313380960,1707247838830,-431.12755074,0.00022999,2]
[313380962,1707247838839,-285.43770354,0.00023,3]
[313380964,1707247838848,-1227.87149592,0.00023,2]
[313380967,1707247838860,-17302.38748843,0.00023,2]
[313380969,1707247838871,-551.29549225,0.00023,2]
[313380972,1707247838893,-11288.25848227,0.00023,2]
[313380975,1707247838904,-12899.59531826,0.00023,2]
[313380977,1707247838915,-540.90981559,0.00023,2]
[313381005,1707247841203,-5174082.42159231,0.00023,2]
[313381006,1707247841213,-2604.16957331,0.00023,2]
[313381007,1707247841222,-155.0,0.00023,2]
[313381008,1707247841232,-1663871.31580169,0.00023,2]
[313381009,1707247841445,-0.0334012,0.00023,2]
[313381010,1707247841462,-432.068,0.00023,2]
[313381011,1707247841473,-810.16,0.00023,2]
[313381012,1707247841485,-789.810015,0.00023,2]
[313381015,1707247841496,-529.159995,0.00023,2]
[313381016,1707247841508,-38313.71270832,0.00023,2]
[313381017,1707247841519,-1153.5,0.00023,2]
[313381018,1707247841531,-66311.71358419,0.00023,2]
[313381020,1707247841542,-1346.64499914,0.00023,2]
[313381022,1707247841609,-3784.42552872,0.00023,2]
[313381023,1707247841621,-5407.07604556,0.00023,2]
[313381024,1707247841632,-1027.15,0.00023,2]
[313381025,1707247841643,-510.72,0.00023,2]
[313381105,1707247843025,-2671.41712482,0.00023,2]
[313381106,1707247843037,-1051.45529362,0.00023,2]
[313381107,1707247843075,-775.44585755,0.00023,2]
[313381108,1707247843131,-337.39267826,0.00023,2]
[313381109,1707247843142,-699.65488193,0.00023,2]
[313381110,1707247843352,-1286547.39249338,0.00023,2]
[313381137,1707247846025,-231.20983156,0.00022999,2]
[313381139,1707247846034,-175047.86708952,0.00023,2]
[313381141,1707247846043,-155.9,0.00023003,2]
[313381143,1707247846052,-500.0,0.00023014,2]
[313381145,1707247846062,-155.9,0.0002308,2]
[313381147,1707247846071,-155.9,0.00023157,2]
[313381149,1707247846080,-2000.0,0.00023229,2]
[313381151,1707247846090,-200.0,0.00023229,2]
[313381153,1707247846099,-155.9,0.00023234,2]
[313381155,1707247846108,-155.9,0.00023311,2]
[313381156,1707247846117,-1023.64,0.00023526,2]
[313381157,1707247846126,-201.89660623,0.00024,2]
[313381158,1707247846135,-187.61,0.00024074,2]
[313381159,1707247846144,-3768.81,0.00024384,2]
[313381160,1707247846153,-177.2,0.00024384,2]
[313381161,1707247846164,-299.57,0.00024483,2]
[313381162,1707247846173,-150.0,0.0002464,2]
[313381163,1707247846182,-150.0,0.0002464,2]
[313381164,1707247846191,-150.0,0.0002464,2]
[313381165,1707247846200,-150.0,0.0002464,2]
[313381166,1707247846209,-150.0,0.0002464,2]
[313381167,1707247846218,-150.0,0.0002464,2]
[313381168,1707247846227,-150.0,0.0002464,2]
[313381169,1707247846236,-150.0,0.0002464,2]
[313381170,1707247846245,-150.0,0.0002464,2]
[313381171,1707247846255,-150.0,0.0002464,2]
[313381172,1707247846264,-150.0,0.0002464,2]
[313381173,1707247846273,-150.0,0.0002464,2]
[313381174,1707247846282,-250.0,0.00024658,2]
[313381175,1707247846291,-14554.12946314,0.00024718,2]
[313381176,1707247846300,-937.18611161,0.00025,2]
[313381177,1707247846309,-1254.49179691,0.00025,2]
[313381178,1707247846318,-1589.9743297,0.00025,2]
[313381179,1707247846327,-304.69299215,0.00025,2]
[313381180,1707247846336,-202.85936825,0.00025,2]
[313381181,1707247846345,-1907.0887071,0.00025,2]
[313381182,1707247846354,-350.0,0.00025,3]
[313381183,1707247846363,-800.0,0.00025041,2]
[313381184,1707247846372,-210.0,0.00025079,2]
[313381185,1707247846382,-1023.64,0.0002517,2]
[313381186,1707247846390,-646.34464711,0.00025614,2]
[313381187,1707247846400,-150.0,0.00026079,2]
[313381188,1707247846409,-187.61,0.00026262,2]
[313381189,1707247846417,-14554.12946314,0.00026536,2]
[313381190,1707247846427,-2940.0,0.000267,2]
[313381191,1707247846435,-18383.0,0.000267,2]
[313381192,1707247846444,-299.57,0.00026747,2]
[313381193,1707247846453,-1023.64,0.00026814,2]
[313381194,1707247846462,-417.5366,0.00027,2]
[313381195,1707247846471,-400.0,0.00027,3]
[313381196,1707247846480,-205.49017375,0.0002705,10]
[313381197,1707247846489,-293.0,0.00027587,2]
[313381198,1707247846498,-287.62759136,0.00028,2]
[313381199,1707247846507,-646.34464711,0.00028329,4]
[313381200,1707247846517,-14554.12946314,0.00028355,2]
[313381201,1707247846527,-1023.64,0.00028458,2]
[313381202,1707247846537,-167.0,0.00028747,2]
[313381203,1707247846546,-450.0,0.00029,3]
[313381204,1707247846555,-299.57,0.00029011,2]
[313381205,1707247846564,-374.26112338,0.000295,2]
[313381206,1707247846573,-492.0,0.00029662,5]
[313381207,1707247846582,-176.13214682,0.000298,2]
[313381208,1707247846592,-501.37813554,0.0003,2]
[313381209,1707247846600,-408.35740093,0.0003,2]
[313381210,1707247846610,-9678.59852311,0.0003,2]
[313381211,1707247846619,-155.0,0.0003,2]
[313381212,1707247846630,-1524.60792,0.0003,2]
[313381213,1707247846639,-1524.60792,0.0003,2]
[313381214,1707247846649,-1524.60792,0.0003,2]
[313381215,1707247846658,-1524.60793,0.0003,2]
[313381216,1707247846667,-1524.60792,0.0003,2]
[313381217,1707247846677,-1524.60793,0.0003,2]
[313381218,1707247846686,-1023.64,0.00030101,2]
[313381219,1707247846695,-150.0,0.00030137,2]
[313381220,1707247846706,-14554.12946314,0.00030173,2]
[313381221,1707247846715,-150.0,0.00030714,2]
[313381222,1707247846725,-500.0,0.00031,3]
[313381223,1707247846734,-646.34464711,0.00031043,5]
[313381224,1707247846743,-299.57,0.00031275,2]
[313381225,1707247846752,-150.0,0.00031291,2]
[313381226,1707247846762,-480.0,0.00031338,2]
[313381227,1707247846771,-2000.0,0.00031338,2]
[313381228,1707247846780,-520.0,0.00031338,2]